bitfinex/quotes_BTCUSD_20250709
["timestamp","ask_amount","ask_price","bid_price","bid_amount"]
[1752066515095,1.00015607,109870.0,109860.0,0.02328679]
[1752066515326,1.00015607,109870.0,109860.0,0.16628679]
[1752066517161,1.00015607,109870.0,109860.0,0.2235414]
[1752066517381,1.00015607,109870.0,109860.0,0.35739916]
[1752066517599,0.72114237,109870.0,109860.0,0.36650157]
[1752066517749,0.52090599,109870.0,109860.0,0.47614298]
[1752066517964,0.5482094,109870.0,109860.0,0.48524489]
[1752066518253,0.55731089,109870.0,109860.0,0.48520489]
[1752066518456,0.53000699,109870.0,109860.0,0.48520489]
[1752066518942,0.49770691,109870.0,109860.0,0.48520489]
[1752066519185,0.48860599,109870.0,109860.0,0.48520489]
[1752066519387,0.47949424,109870.0,109860.0,0.48520489]
[1752066519599,0.47949424,109870.0,109860.0,0.58516827]
[1752066520589,0.75850794,109870.0,109860.0,0.62670143]
[1752066520739,0.75850794,109870.0,109860.0,0.62662143]
[1752066520740,0.81771152,109870.0,109860.0,0.62662143]
[1752066520946,0.81771152,109870.0,109860.0,0.61751952]
[1752066521140,0.80861019,109870.0,109860.0,0.58608827]
[1752066521381,0.52959649,109870.0,109860.0,0.58608827]
[1752066521599,0.79950894,109870.0,109860.0,0.58608827]
[1752066521985,0.47949424,109870.0,109860.0,0.58608827]
[1752066522449,0.47949424,109870.0,109860.0,0.62662143]
[1752066525325,0.47949424,109870.0,109860.0,0.90563513]
[1752066525511,0.47949424,109870.0,109860.0,0.68081675]
[1752066525711,0.47949424,109870.0,109860.0,0.62662143]
[1752066525962,0.48859516,109870.0,109860.0,0.62662143]
[1752066526176,0.49769616,109870.0,109860.0,0.62662143]
[1752066526919,0.47949424,109870.0,109860.0,0.62662143]
[1752066527118,0.47949424,109870.0,109860.0,0.68081675]
[1752066527947,0.48859516,109870.0,109860.0,0.68081675]
[1752066528213,0.47949424,109870.0,109860.0,0.68081675]
[1752066528624,0.47949424,109870.0,109860.0,0.97931675]
[1752066528799,0.48859516,109870.0,109860.0,0.97931675]
[1752066529254,0.49769616,109870.0,109860.0,0.97931675]
[1752066529459,0.50679732,109870.0,109860.0,0.97931675]
[1752066529667,0.80401368,109870.0,109860.0,0.83647675]
[1752066529878,0.99884515,109870.0,109860.0,0.96103252]
[1752066530070,0.82591342,109870.0,109860.0,0.91593919]
[1752066530280,1.00794723,109870.0,109860.0,0.9068372]
[1752066530557,0.98974449,109870.0,109860.0,0.90683736]
[1752066530731,0.80771035,109870.0,109860.0,0.92504143]
[1752066530933,0.82591342,109870.0,109860.0,0.92504143]
[1752066531115,1.01704839,109870.0,109860.0,0.92504159]
[1752066531337,1.00794731,109870.0,109860.0,0.92504159]
[1752066531551,1.00794731,109870.0,109860.0,0.92503925]
[1752066531922,0.99884598,109870.0,109860.0,0.90683502]
[1752066532271,0.81681267,109870.0,109860.0,0.90683502]
[1752066532478,0.99884598,109870.0,109860.0,0.97013241]
[1752066533043,0.80771101,109870.0,109860.0,0.97923432]
[1752066533250,0.98974432,109870.0,109860.0,0.79096312]
[1752066533464,0.98974432,109870.0,109860.0,0.89306996]
[1752066534253,1.27498432,109870.0,109860.0,0.60902553]
[1752066534456,1.27498432,109870.0,109860.0,0.26988008]
[1752066534647,1.27498432,109870.0,109860.0,0.31054893]
[1752066534876,1.27498432,109870.0,109860.0,0.25635361]
[1752066535400,1.27498432,109870.0,109860.0,0.31054893]
[1752066536368,1.27498432,109870.0,109860.0,0.31056401]
[1752066536612,1.27498432,109870.0,109860.0,0.5108187]
[1752066536988,1.27498432,109870.0,109860.0,0.51992094]
[1752066537136,1.27498432,109870.0,109860.0,0.50171638]
[1752066537342,1.27498432,109870.0,109860.0,0.50176497]
[1752066537541,0.99597062,109870.0,109860.0,0.51086738]
[1752066537784,1.27498432,109870.0,109860.0,0.51086738]
[1752066538133,1.27498432,109870.0,109860.0,0.50176497]
[1752066538338,1.26588283,109870.0,109860.0,0.46109612]
[1752066539434,1.26588283,109870.0,109860.0,0.45199363]
[1752066539884,1.26588283,109870.0,109860.0,0.46109612]
[1752066540554,1.26588283,109870.0,109860.0,0.45199363]
[1752066541450,1.26588283,109870.0,109860.0,0.26994375]
[1752066541925,1.26588283,109870.0,109860.0,0.17850682]
[1752066542361,1.26588283,109870.0,109860.0,0.17851825]
[1752066542798,1.97633346,109870.0,109860.0,0.21924514]
[1752066542997,1.97633346,109870.0,109860.0,0.06508644]
[1752066543198,1.99087431,109870.0,109860.0,0.02435955]
[1752066543414,1.99087431,109870.0,109860.0,0.00875955]
[1752066543803,2.08231124,109870.0,109860.0,0.00875955]
[1752066544962,1.99087431,109870.0,109860.0,0.00875955]
[1752066545961,0.20939472,109840.0,109830.0,0.30505976]
[1752066546163,0.79468477,109840.0,109830.0,0.11390288]
[1752066546607,0.79468477,109840.0,109830.0,0.07317599]
[1752066547265,0.79568477,109840.0,109830.0,0.07317599]
[1752066548377,0.79568477,109840.0,109830.0,0.2643804]
[1752066548570,0.79568477,109840.0,109830.0,0.26438057]
[1752066548779,0.79568477,109840.0,109830.0,0.27348538]
[1752066548990,0.78658087,109840.0,109830.0,0.25527559]
[1752066549206,0.78658087,109840.0,109830.0,0.27348529]
[1752066549344,0.78658087,109840.0,109830.0,0.26438048]
[1752066549549,0.78658087,109840.0,109830.0,0.25527559]
[1752066549750,0.78758087,109840.0,109830.0,0.25527559]
[1752066550182,0.77198087,109840.0,109830.0,0.27348546]
[1752066550384,0.77198087,109840.0,109830.0,0.28259027]
[1752066550574,0.77198087,109840.0,109830.0,0.27348546]
[1752066551247,0.49296717,109840.0,109830.0,0.28259027]
[1752066551395,0.58390133,109840.0,109830.0,0.30079931]
[1752066551602,0.78419215,109840.0,109830.0,0.30079947]
[1752066551830,0.78419215,109840.0,109830.0,0.28258993]
[1752066552111,0.49951215,109840.0,109830.0,0.29169449]
[1752066552317,0.45958913,109840.0,109830.0,0.30079897]
[1752066552694,0.64167215,109840.0,109830.0,0.28258993]
[1752066552865,0.64167215,109840.0,109830.0,0.29169441]
[1752066553288,0.16236705,109840.0,109830.0,0.39223574]
[1752066553461,0.16232705,109840.0,109830.0,0.43296263]
[1752066553891,0.002,109840.0,109830.0,0.55075574]
[1752066554076,0.002,109840.0,109830.0,0.87049633]
[1752066554253,0.002,109840.0,109830.0,1.04055503]
[1752066554487,0.002,109840.0,109830.0,1.10862829]
[1752066555029,0.001,109840.0,109830.0,1.02718014]
[1752066555233,0.001,109840.0,109830.0,1.10862829]
[1752066555432,0.001,109840.0,109830.0,1.12316914]
[1752066555691,0.001,109840.0,109830.0,1.07531807]
[1752066556425,0.001,109840.0,109830.0,1.07631807]
[1752066556638,0.001,109840.0,109830.0,1.0763195]
[1752066556882,0.001,109840.0,109830.0,0.72317632]
[1752066557094,0.02730581,109860.0,109850.0,0.2184784]
[1752066557283,0.02730581,109860.0,109850.0,0.49899533]
[1752066557848,0.96784582,109870.0,109860.0,0.20025427]
[1752066558040,0.96784524,109870.0,109860.0,0.21570194]
[1752066558253,0.77671035,109870.0,109860.0,0.20659995]
[1752066558477,0.49769657,109870.0,109860.0,0.30713879]
[1752066558677,0.50679806,109870.0,109860.0,0.30713879]
[1752066558876,0.50679798,109870.0,109860.0,0.30713879]
[1752066559365,0.50679806,109870.0,109860.0,0.30713879]
[1752066559969,0.50779806,109870.0,109860.0,0.30713879]
[1752066560170,0.50779806,109870.0,109860.0,0.29803688]
[1752066560378,0.96884507,109870.0,109860.0,0.28893481]
[1752066560582,0.95974399,109870.0,109860.0,0.2889349]
[1752066561099,0.95974399,109870.0,109860.0,0.30713946]
[1752066561534,0.95974399,109870.0,109860.0,0.29803722]
[1752066561742,0.95974399,109870.0,109860.0,0.29803714]
[1752066562196,0.77771068,109870.0,109860.0,0.30713913]
[1752066562506,0.79591392,109870.0,109860.0,0.30713913]
[1752066562708,0.97794723,109870.0,109860.0,0.29803714]
[1752066563420,0.96884598,109870.0,109860.0,0.29803714]
[1752066563714,0.96714291,109870.0,109860.0,0.2889349]
[1752066563930,0.96714291,109870.0,109860.0,0.29803722]
[1752066564137,0.96714291,109870.0,109860.0,0.28893498]
[1752066564353,0.96714291,109870.0,109860.0,0.2980373]
[1752066564896,0.96714291,109870.0,109860.0,0.28893498]
[1752066565097,0.95804125,109870.0,109860.0,0.28893498]
[1752066565411,0.95804125,109870.0,109860.0,0.29804279]
[1752066565634,0.95804125,109870.0,109860.0,0.28894038]
[1752066566009,0.95804125,109870.0,109860.0,0.2980427]
[1752066566180,0.95804125,109870.0,109860.0,0.28894038]
[1752066566608,0.95804125,109870.0,109860.0,0.29804279]
[1752066566912,0.95804125,109870.0,109860.0,0.28894038]
[1752066567494,0.49699424,109870.0,109860.0,0.35686084]
[1752066567698,0.6989332,109870.0,109860.0,0.34775893]
[1752066567901,0.49869665,109870.0,109860.0,0.36335893]
[1752066568107,0.49869632,109870.0,109860.0,0.37246084]
[1752066568315,0.48959516,109870.0,109860.0,0.37246007]
[1752066568521,0.49769632,109870.0,109860.0,0.37246007]
[1752066568665,0.50679765,109870.0,109860.0,0.37246007]
[1752066568871,0.51589914,109870.0,109860.0,0.35686007]
[1752066569074,0.50679765,109870.0,109860.0,0.35686007]
[1752066569710,0.51589914,109870.0,109860.0,0.35686007]
[1752066570944,0.69793319,109870.0,109860.0,0.33865625]
[1752066571148,0.97694689,109870.0,109860.0,0.48983781]
[1752066571567,0.97694689,109870.0,109860.0,0.49893988]
[1752066571698,0.97694689,109870.0,109860.0,0.50804187]
[1752066572347,0.97694689,109870.0,109860.0,0.49893988]
[1752066572538,0.69793319,109870.0,109860.0,0.49893988]
[1752066572737,0.97694689,109870.0,109860.0,0.50804187]
[1752066573556,0.51589988,109870.0,109860.0,0.50804129]
[1752066573782,0.79491358,109870.0,109860.0,0.50804129]
[1752066574316,0.97694689,109870.0,109860.0,0.49893938]
[1752066574660,0.97694689,109870.0,109860.0,0.49917938]
[1752066574869,0.79491358,109870.0,109860.0,0.49917938]
[1752066575078,0.97694689,109870.0,109860.0,0.49917938]
[1752066575511,0.9741444,109870.0,109860.0,0.32045084]
[1752066575681,0.6951307,109870.0,109860.0,0.47187333]
[1752066575880,0.9741444,109870.0,109860.0,0.47187333]
[1752066576153,0.96504291,109870.0,109860.0,0.47187333]
[1752066576527,0.95594125,109870.0,109860.0,0.47187333]
[1752066576757,0.69202755,109870.0,109860.0,0.28064096]
[1752066576975,0.97104125,109870.0,109860.0,0.18920403]
[1752066577212,0.97104125,109870.0,109860.0,0.00634971]
[1752066577418,1.34149188,109870.0,109860.0,0.00634971]
[1752066577557,1.68149188,109870.0,109860.0,0.00634971]
[1752066578372,1.59005495,109870.0,109860.0,0.00634971]
[1752066578582,1.31104125,109870.0,109860.0,0.00634971]
[1752066580034,1.03202755,109870.0,109860.0,0.00634971]
[1752066580239,1.31104125,109870.0,109860.0,0.00634971]
[1752066582668,1.45320125,109870.0,109860.0,0.00634971]
[1752066583492,1.52080616,109870.0,109860.0,0.00634971]
[1752066585393,1.45320125,109870.0,109860.0,0.00634971]
[1752066585573,1.73221495,109870.0,109860.0,0.00534971]
[1752066585769,1.17418755,109870.0,109860.0,0.00534971]
[1752066586104,1.73221495,109870.0,109860.0,0.00534971]
[1752066587242,1.73321495,109870.0,109860.0,0.00534971]
[1752066588045,1.73621495,109870.0,109860.0,0.00534971]
[1752066588807,1.82765188,109870.0,109860.0,0.00534971]
[1752066591772,0.200272,109850.0,109840.0,0.46236184]
[1752066591957,0.4792857,109850.0,109840.0,0.41159877]
[1752066592158,0.200272,109850.0,109840.0,0.41159877]
[1752066592377,0.48838885,109850.0,109840.0,0.42070258]
[1752066592844,0.49749209,109850.0,109840.0,0.42070258]
[1752066593073,0.3245287,109850.0,109840.0,0.42980565]
[1752066593285,0.30732282,109850.0,109840.0,0.42980565]
[1752066593962,0.31642605,109850.0,109840.0,0.42980565]
[1752066594169,0.01010265,109850.0,109840.0,0.42980565]
[1752066594389,0.001,109850.0,109840.0,0.76555318]
[1752066594611,0.001,109850.0,109840.0,0.48653948]
[1752066594830,0.001,109850.0,109840.0,0.79290318]
[1752066595068,0.001,109850.0,109840.0,0.51388948]
[1752066595277,0.001,109850.0,109840.0,0.53086097]
[1752066595488,0.001,109850.0,109840.0,0.80987467]
[1752066595689,0.001,109850.0,109840.0,0.75572224]
[1752066595913,0.001,109850.0,109840.0,0.47670854]
[1752066596129,0.001,109850.0,109840.0,0.75572224]
[1752066596543,0.001,109850.0,109840.0,0.47670854]
[1752066596953,0.001,109850.0,109840.0,0.75572224]
[1752066597479,0.001,109850.0,109840.0,0.47670854]
[1752066597685,0.001,109850.0,109840.0,0.78904497]
[1752066597901,0.01010265,109850.0,109840.0,0.53738127]
[1752066598126,0.001,109850.0,109840.0,0.81639497]
[1752066598346,0.001,109850.0,109840.0,0.79514289]
[1752066598545,0.001,109850.0,109840.0,0.90378826]
[1752066599457,0.001,109850.0,109840.0,1.20228826]
[1752066600219,0.001,109850.0,109840.0,0.92527456]
[1752066600430,0.001,109850.0,109840.0,1.06719456]
[1752066600649,0.001,109850.0,109840.0,0.92527456]
[1752066600847,0.04551021,109860.0,109850.0,0.22487566]
[1752066600848,0.04551087,109860.0,109850.0,0.22487566]
[1752066600973,0.32452449,109860.0,109850.0,0.57536631]
[1752066601181,0.49747246,109860.0,109850.0,0.71716648]
[1752066601405,0.49747246,109860.0,109850.0,0.69256349]
[1752066601612,0.48837047,109860.0,109850.0,0.69256349]
[1752066602221,0.47926831,109860.0,109850.0,0.68346042]
[1752066602430,0.47926831,109860.0,109850.0,0.69256357]
[1752066602865,0.01820473,109860.0,109850.0,0.71076946]
[1752066603238,0.01820473,109860.0,109850.0,0.72806946]
[1752066603458,0.29721843,109860.0,109850.0,0.73717245]
[1752066603668,0.47926831,109860.0,109850.0,0.73717245]
[1752066603856,0.02730722,109860.0,109850.0,0.73717187]
[1752066604466,0.2093571,109860.0,109850.0,0.56086631]
[1752066604658,0.02730722,109860.0,109850.0,0.71164921]
[1752066604894,0.02730722,109860.0,109850.0,0.72075203]
[1752066605101,0.02730722,109860.0,109850.0,0.72075162]
[1752066605253,0.01820473,109860.0,109850.0,0.72745003]
[1752066605456,0.2093571,109860.0,109850.0,0.72745003]
[1752066605659,0.29721843,109860.0,109850.0,0.72745003]
[1752066605865,0.96494343,109870.0,109860.0,0.18204988]
[1752066606108,0.94964343,109870.0,109860.0,0.2461261]
[1752066606312,0.48859516,109870.0,109860.0,0.36486975]
[1752066606521,0.51589922,109870.0,109860.0,0.44407337]
[1752066606757,0.50679773,109870.0,109860.0,0.44407337]
[1752066606965,0.49769632,109870.0,109860.0,0.44407337]
[1752066607786,0.48859516,109870.0,109860.0,0.44407337]
[1752066608022,0.48859516,109870.0,109860.0,0.42710188]
[1752066608230,0.48859516,109870.0,109860.0,0.44407655]
[1752066608411,0.48859516,109870.0,109860.0,0.50049011]
[1752066608610,0.48959516,109870.0,109860.0,0.50049011]
[1752066609277,0.48049424,109870.0,109860.0,0.80317103]
[1752066609493,0.48049424,109870.0,109860.0,1.1745255]
[1752066610130,0.48049424,109870.0,109860.0,1.2018695]
[1752066610357,0.48049424,109870.0,109860.0,1.2038695]
[1752066610563,0.47949424,109870.0,109860.0,1.2038695]
[1752066610763,0.47949424,109870.0,109860.0,0.9248558]
[1752066610966,0.47949424,109870.0,109860.0,1.2038695]
[1752066611192,0.47949424,109870.0,109860.0,1.09522413]
[1752066612045,0.47949424,109870.0,109860.0,1.23690413]
[1752066612459,0.47949424,109870.0,109860.0,0.95789043]
[1752066612885,0.47949424,109870.0,109860.0,1.23690413]
[1752066613115,0.47949424,109870.0,109860.0,1.31823972]
[1752066614467,1e-08,109870.0,109860.0,2.13925342]
[1752066614913,0.10450106,109900.0,109890.0,0.22489919]
[1752066615138,0.10450106,109900.0,109890.0,0.52200165]
[1752066615358,0.12269817,109900.0,109890.0,0.48135651]
[1752066615579,0.12269809,109900.0,109890.0,0.48135651]
[1752066615804,0.11359949,109900.0,109890.0,0.48135651]
[1752066616022,0.10450106,109900.0,109890.0,0.48135651]
[1752066616247,0.10450106,109900.0,109890.0,0.48140302]
[1752066616470,0.10850106,109900.0,109890.0,0.52204816]
[1752066616698,0.10850106,109900.0,109890.0,0.48140302]
[1752066618072,0.10850106,109900.0,109890.0,0.49690302]
[1752066619633,0.10850106,109900.0,109890.0,0.48133841]
[1752066620071,0.10850106,109900.0,109890.0,0.50811837]
[1752066620297,0.10850106,109900.0,109890.0,0.48133841]
[1752066620507,0.10850106,109900.0,109890.0,0.49753841]
[1752066623210,0.11759949,109900.0,109890.0,0.49753841]
[1752066623411,0.10850106,109900.0,109890.0,0.49753841]
[1752066623758,0.11759949,109900.0,109890.0,0.49753841]
[1752066623987,0.11759949,109900.0,109890.0,0.48129841]
[1752066624457,0.11759949,109900.0,109890.0,0.52194355]
[1752066624698,0.11759949,109900.0,109890.0,0.54976716]
[1752066624939,0.10850106,109900.0,109890.0,0.54976716]
[1752066625595,0.11759949,109900.0,109890.0,0.54976716]
[1752066625808,0.10850106,109900.0,109890.0,0.54976716]
[1752066626278,0.11759949,109900.0,109890.0,0.84826716]
[1752066626494,0.10850106,109900.0,109890.0,0.84826716]
[1752066626701,0.10850106,109900.0,109890.0,0.86476716]
[1752066626906,0.10850106,109900.0,109890.0,0.84826716]
[1752066627676,0.11759949,109900.0,109890.0,0.84826716]
[1752066627928,0.10850106,109900.0,109890.0,0.84826716]
[1752066628396,0.10850106,109900.0,109890.0,0.84824471]
[1752066629592,0.10850106,109900.0,109890.0,0.8204211]
[1752066629795,0.10850106,109900.0,109890.0,0.8477591]
[1752066630790,0.10850106,109900.0,109890.0,0.90195262]
[1752066631197,0.10850106,109900.0,109890.0,0.84776916]
[1752066632057,0.11759949,109900.0,109890.0,0.54926916]
[1752066632266,0.11759949,109900.0,109890.0,0.60346268]
[1752066633011,0.10850106,109900.0,109890.0,0.60346268]
[1752066633898,0.10850106,109900.0,109890.0,0.60374268]
[1752066634520,0.11759949,109900.0,109890.0,0.60374268]
[1752066635352,0.10850106,109900.0,109890.0,0.60374268]
[1752066635774,0.11759949,109900.0,109890.0,0.60374268]
[1752066636001,0.10850106,109900.0,109890.0,0.60374268]
[1752066636229,0.10850106,109900.0,109890.0,0.56309754]
[1752066636465,0.11759949,109900.0,109890.0,0.56309754]
[1752066637170,0.11759949,109900.0,109890.0,0.5631069]
[1752066637392,0.11759957,109900.0,109890.0,0.5475069]
[1752066637609,0.11759957,109900.0,109890.0,0.3782489]
[1752066637830,0.13349957,109900.0,109890.0,0.5203689]
[1752066638068,0.13349957,109900.0,109890.0,0.8188689]
[1752066638296,0.13349957,109900.0,109890.0,0.90020449]
[1752066638498,0.13349949,109900.0,109890.0,0.90020449]
[1752066639126,0.40293913,109900.0,109890.0,0.90020449]
[1752066639363,0.39613756,109900.0,109890.0,0.90020449]
[1752066639832,0.40523607,109900.0,109890.0,0.90020449]
[1752066640044,0.43083467,109900.0,109890.0,0.90020449]
[1752066640261,0.44663467,109900.0,109890.0,0.90060449]
[1752066640511,0.43083467,109900.0,109890.0,0.90060449]
[1752066640984,0.42173607,109900.0,109890.0,0.90060449]
[1752066641959,0.143198,109900.0,109890.0,0.90060449]
[1752066642210,0.41263756,109900.0,109890.0,0.84641097]
[1752066642638,0.143198,109900.0,109890.0,0.84641097]
[1752066642860,0.42173607,109900.0,109890.0,0.84641097]
[1752066643206,0.42173607,109900.0,109890.0,0.70389097]
[1752066643383,0.143198,109900.0,109890.0,0.84653097]
[1752066643626,0.42173607,109900.0,109890.0,0.84653097]
[1752066643812,0.44673475,109900.0,109890.0,0.52979188]
[1752066644042,0.63781787,109900.0,109890.0,0.5841205]
[1752066644282,0.63781854,109900.0,109890.0,0.37809196]
[1752066644498,0.63781854,109900.0,109890.0,0.52975188]
[1752066644718,0.35928047,109900.0,109890.0,0.53885172]
[1752066644937,0.63781854,109900.0,109890.0,0.53885172]
[1752066645154,0.35928047,109900.0,109890.0,0.53885172]
[1752066645643,0.63781854,109900.0,109890.0,0.53885172]
[1752066645851,0.62871986,109900.0,109890.0,0.52065196]
[1752066646263,0.61962102,109900.0,109890.0,0.10465485]
[1752066646488,1.03158,109900.0,109890.0,0.15901931]
[1752066646705,1.03158,109900.0,109890.0,0.11846676]
[1752066646706,1.37158,109900.0,109890.0,0.11846676]
[1752066646952,0.81450386,109900.0,109890.0,0.0641023]
[1752066647118,1.37158,109900.0,109890.0,0.0641023]
[1752066647737,1.37158,109900.0,109890.0,0.04718347]
[1752066649886,1.37158,109900.0,109890.0,0.00640043]
[1752066650603,1.37058,109900.0,109890.0,0.00640043]
[1752066650805,1.37258,109900.0,109890.0,0.00640043]
[1752066651223,1.47555778,109900.0,109890.0,0.00640043]
[1752066651429,1.47555778,109900.0,109890.0,0.00640991]
[1752066651673,1.56699471,109900.0,109890.0,0.00640991]
[1752066651848,1.56699471,109900.0,109890.0,4.651e-05]
[1752066652054,1.56999471,109900.0,109890.0,4.651e-05]
[1752066652756,1.56699471,109900.0,109890.0,4.651e-05]
[1752066652959,0.91988164,109900.0,109890.0,4.651e-05]
[1752066653153,1.48195778,109900.0,109890.0,4.651e-05]
[1752066653604,1.47995778,109900.0,109890.0,4.651e-05]
[1752066653978,1.48295778,109900.0,109890.0,4.651e-05]
[1752066654582,1.33903778,109900.0,109890.0,4.651e-05]
[1752066654785,0.81223468,109900.0,109890.0,4.651e-05]
[1752066655063,1.23477275,109900.0,109890.0,4.651e-05]
[1752066655470,1.49567667,109900.0,109890.0,4.651e-05]
[1752066656598,1.49559667,109900.0,109890.0,4.651e-05]
[1752066656850,1.49359667,109900.0,109890.0,4.651e-05]
[1752066657056,0.93652053,109900.0,109890.0,4.651e-05]
[1752066657270,1.2150586,109900.0,109890.0,4.651e-05]
[1752066657623,1.49359667,109900.0,109890.0,4.651e-05]
[1752066657826,1.5850336,109900.0,109890.0,4.651e-05]
[1752066658029,1.49359667,109900.0,109890.0,4.651e-05]
[1752066658279,1.18787886,109900.0,109890.0,4.651e-05]
[1752066658431,0.67398386,109900.0,109890.0,4.651e-05]
[1752066658634,1.09636193,109900.0,109890.0,4.651e-05]
[1752066659026,0.95252193,109900.0,109890.0,4.651e-05]
[1752066659439,1.09640193,109900.0,109890.0,4.651e-05]
[1752066660262,0.95252193,109900.0,109890.0,4.651e-05]
[1752066660708,1.09636193,109900.0,109890.0,4.651e-05]
[1752066662108,1.09632193,109900.0,109890.0,4.651e-05]
[1752066662276,1.09628193,109900.0,109890.0,4.651e-05]
[1752066663720,1.09628193,109900.0,109890.0,0.00639636]
[1752066663941,1.46625693,109900.0,109890.0,4.651e-05]
[1752066664150,1.48079778,109900.0,109890.0,4.651e-05]
[1752066664324,1.57223471,109900.0,109890.0,4.651e-05]
[1752066665831,1.55868891,109900.0,109890.0,4.651e-05]
[1752066667403,1.61319493,109900.0,109890.0,4.651e-05]
[1752066671519,1.70911493,109900.0,109890.0,4.651e-05]
[1752066672317,1.75871493,109900.0,109890.0,4.651e-05]
[1752066675867,1.70871493,109900.0,109890.0,4.651e-05]
[1752066675997,1.75871493,109900.0,109890.0,4.651e-05]
[1752066677625,1.80871492,109900.0,109890.0,1e-08]
[1752066678024,0.20025427,109860.0,109850.0,0.13032893]
[1752066678388,0.47879234,109860.0,109850.0,0.13674426]
[1752066678744,0.47879234,109860.0,109850.0,0.15244426]
[1752066678957,0.90045041,109860.0,109850.0,0.06361478]
[1752066679155,0.91555041,109860.0,109850.0,0.00641533]
[1752066679357,1.02358734,109860.0,109850.0,0.00641533]
[1752066679742,1.36558734,109860.0,109850.0,0.00641533]
[1752066680113,1.37475334,109860.0,109850.0,0.00641533]
[1752066680335,1.46619027,109860.0,109850.0,0.00641533]
[1752066680529,1.46419027,109860.0,109850.0,0.00641533]
[1752066681089,1.37275334,109860.0,109850.0,0.00641533]
[1752066681936,1.37275334,109860.0,109850.0,0.00741533]
[1752066685812,1.37275334,109860.0,109850.0,0.00741212]
[1752066689006,1.22963334,109860.0,109850.0,0.00741212]
[1752066689216,0.54942027,109860.0,109850.0,0.20527857]
[1752066689425,0.97079834,109860.0,109850.0,0.03841212]
[1752066689805,0.98085828,109860.0,109850.0,0.03841212]
[1752066690842,0.98085828,109860.0,109850.0,0.02321212]
[1752066692097,0.83801828,109860.0,109850.0,0.02321212]
[1752066692300,0.97071834,109860.0,109850.0,0.02321212]
[1752066692720,0.69218027,109860.0,109850.0,0.02321212]
[1752066692959,0.97071834,109860.0,109850.0,0.02321212]
[1752066694896,0.97071834,109860.0,109850.0,0.02321045]
[1752066696533,0.97071834,109860.0,109850.0,0.04018528]
[1752066697301,1.06215527,109860.0,109850.0,0.04018528]
[1752066697690,0.97071834,109860.0,109850.0,0.04018742]
[1752066699329,0.97071834,109860.0,109850.0,0.05608742]
[1752066700580,0.54942027,109860.0,109850.0,0.05608742]
[1752066700778,0.36736974,109860.0,109850.0,0.53489808]
[1752066700934,0.54934215,109870.0,109860.0,0.0324]
[1752066701143,0.54934215,109870.0,109860.0,0.23779273]
[1752066701343,0.69170215,109870.0,109860.0,0.23779273]
[1752066702166,0.69470215,109870.0,109860.0,0.23779273]
[1752066702674,0.69170215,109870.0,109860.0,0.23779273]
[1752066702892,0.69170215,109870.0,109860.0,0.23879273]
[1752066703094,0.54934215,109870.0,109860.0,0.23879273]
[1752066703293,0.70069071,109870.0,109860.0,0.23879273]
[1752066703462,0.69158938,109870.0,109860.0,0.23879273]
[1752066704728,0.69158938,109870.0,109860.0,0.23842641]
[1752066705214,0.69358938,109870.0,109860.0,0.23842641]
[1752066705574,0.69158938,109870.0,109860.0,0.23842641]
[1752066706403,0.6824878,109870.0,109860.0,0.23842641]
[1752066706579,0.5401278,109870.0,109860.0,0.23842641]
[1752066706775,0.6823278,109870.0,109860.0,0.23842641]
[1752066707316,0.6822078,109870.0,109860.0,0.23842641]
[1752066710478,0.54012279,109870.0,109860.0,0.24752873]
[1752066710684,0.36942678,109870.0,109860.0,0.23842641]
[1752066710887,0.36942678,109870.0,109860.0,0.288259]
[1752066711094,0.35122478,109870.0,109860.0,0.27915659]
[1752066712246,0.35122478,109870.0,109860.0,0.27914927]
[1752066712449,0.35122478,109870.0,109860.0,0.28825176]
[1752066712850,0.20922478,109870.0,109860.0,0.43025176]
[1752066713050,0.20922478,109870.0,109860.0,0.42114927]
[1752066713464,0.20922478,109870.0,109860.0,0.43025176]
[1752066713662,0.20922478,109870.0,109860.0,0.42114927]
[1752066715013,0.20012345,109870.0,109860.0,0.42114927]
[1752066717419,0.20012345,109870.0,109860.0,0.40454927]
[1752066718552,0.19113489,109870.0,109860.0,0.40454927]
[1752066718950,0.19113489,109870.0,109860.0,0.36381909]
[1752066719162,0.19113489,109870.0,109860.0,0.37292158]
[1752066719361,0.19113489,109870.0,109860.0,0.39822399]
[1752066719599,0.19113489,109870.0,109860.0,0.38001909]
[1752066720115,0.46057138,109870.0,109860.0,0.36381909]
[1752066720533,0.18203331,109870.0,109860.0,0.36381909]
[1752066720896,0.18203331,109870.0,109860.0,0.36381734]
[1752066721260,0.18203331,109870.0,109860.0,0.40454752]
[1752066723518,0.18203331,109870.0,109860.0,0.40454848]
[1752066725842,0.18203331,109870.0,109860.0,0.40450848]
[1752066726044,0.18203331,109870.0,109860.0,0.0804986]
[1752066726272,0.54620165,109870.0,109860.0,0.20702492]
[1752066726472,0.49177138,109870.0,109860.0,0.20702492]
[1752066726672,0.21323331,109870.0,109860.0,0.20702492]
[1752066726933,0.49177138,109870.0,109860.0,0.20702492]
[1752066727779,0.47617138,109870.0,109860.0,0.20702492]
[1752066728459,0.22272664,109880.0,109870.0,0.18203331]
[1752066728670,0.2093983,109880.0,109870.0,0.22966971]
[1752066728873,0.2093983,109880.0,109870.0,0.26129823]
[1752066728874,0.21849913,109880.0,109870.0,0.26129823]
[1752066729476,0.21849913,109880.0,109870.0,0.25343044]
[1752066729610,0.22049913,109880.0,109870.0,0.24432878]
[1752066729811,0.21139879,109880.0,109870.0,0.24432878]
[1752066730021,0.21239879,109880.0,109870.0,0.24432878]
[1752066730651,0.21239879,109880.0,109870.0,0.18905547]
[1752066730652,0.52263686,109880.0,109870.0,0.18905547]
[1752066730907,0.61407379,109880.0,109870.0,0.18905547]
[1752066731247,0.52263686,109880.0,109870.0,0.18905547]
[1752066733690,0.50623686,109880.0,109870.0,0.18905547]
[1752066734104,0.50623686,109880.0,109870.0,0.20605271]
[1752066735564,0.30601871,109880.0,109870.0,0.38808602]
[1752066735800,1e-08,109880.0,109870.0,1.10843884]
[1752066736024,0.08895526,109900.0,109890.0,0.22519919]
[1752066736232,0.08895526,109900.0,109890.0,1.19689479]
[1752066736382,0.08895526,109900.0,109890.0,0.91835672]
[1752066736591,0.09805377,109900.0,109890.0,0.24626263]
[1752066736767,0.29823516,109900.0,109890.0,0.37232263]
[1752066736967,0.30733425,109900.0,109890.0,0.37232263]
[1752066737327,0.30733425,109900.0,109890.0,0.41312468]
[1752066737818,0.12530512,109900.0,109890.0,0.27116468]
[1752066737997,0.30728874,109900.0,109890.0,0.50806877]
[1752066738190,0.29819023,109900.0,109890.0,0.49896885]
[1752066738401,0.27999246,109900.0,109890.0,0.07774976]
[1752066738624,0.73205053,109900.0,109890.0,0.11841559]
[1752066738744,0.45351246,109900.0,109890.0,0.06407487]
[1752066738951,0.43741246,109900.0,109890.0,0.06407487]
[1752066739285,0.43741246,109900.0,109890.0,0.02440904]
[1752066742596,0.43741246,109900.0,109890.0,0.02433341]
[1752066743593,0.43841246,109900.0,109890.0,0.02433341]
[1752066743804,0.43841246,109900.0,109890.0,0.02333341]
[1752066744762,0.29649246,109900.0,109890.0,0.02333341]
[1752066745134,0.29649246,109900.0,109890.0,0.20533359]